bitfinex/quotes_ETHUSD_20250903
["timestamp","ask_amount","ask_price","bid_price","bid_amount"]
[1756907744097,1.2089,4424.7,4422.9,0.97895]
[1756907744302,1.2089,4424.7,4423.1,2.26085776]
[1756907744508,2.26019301,4424.5,4422.9,0.20445]
[1756907744661,4.209,4424.4,4422.9,0.20445]
[1756907744857,3.0,4424.6,4423.0,0.84374935]
[1756907745057,1.2089,4424.5,4422.9,0.20445]
[1756907745361,2.26052144,4423.8,4422.8,0.025]
[1756907745587,1.737,4424.4,4422.8,0.025]
[1756907745904,4.209,4424.3,4423.5,2.2606083]
[1756907746068,4.209,4424.3,4422.8,0.025]
[1756907746272,0.4346,4424.2,4422.8,0.029]
[1756907746568,1.2089,4424.2,4423.4,2.26069028]
[1756907746917,0.7743,4425.1,4423.4,0.22606903]
[1756907747060,0.7743,4425.1,4423.2,5.946]
[1756907747061,0.4346,4425.0,4423.2,1.738]
[1756907747260,0.4346,4425.0,4423.9,2.26044854]
[1756907747459,0.4346,4425.0,4423.2,1.738]
[1756907747460,4.208,4425.3,4424.6,2.260062]
[1756907747790,5.946,4425.4,4424.4,2.26015369]
[1756907747991,3.0,4425.3,4424.3,2.26020665]
[1756907748162,1.23714731,4425.2,4422.8,0.8035]
[1756907748364,1.23714731,4425.2,4423.4,2.26067554]
[1756907748365,2.26004704,4424.7,4423.4,2.26067554]
[1756907748559,4.67085114,4424.6,4422.8,0.8035]
[1756907748802,2.26014238,4424.5,4423.6,2.26060161]
[1756907748962,4.6426,4424.6,4423.2,1.738]
[1756907749163,0.025,4430.8,4423.3,0.18688653]
[1756907749164,3.0,4425.3,4423.3,0.18688653]
[1756907749363,2.25994383,4424.9,4424.0,2.26038442]
[1756907749669,0.1128,4424.7,4424.1,0.1128]
[1756907749870,4.207,4424.9,4424.1,0.1128]
[1756907750197,4.3198,4424.9,4424.1,0.1128]
[1756907751178,0.1128,4424.9,4424.3,2.26022738]
[1756907751380,1.738,4425.4,4424.4,2.26019347]
[1756907751584,3.0,4425.3,4424.7,0.1128]
[1756907751781,2.26008672,4424.7,4423.3,3.85317936]
[1756907751997,4.206,4424.8,4424.3,0.1128]
[1756907752291,4.206,4424.8,4423.6,0.1128]
[1756907752292,0.4253,4424.4,4423.6,0.1128]
[1756907752469,0.8599,4424.4,4423.6,0.1128]
[1756907752669,0.8599,4424.4,4423.7,2.26054621]
[1756907752882,0.1128,4424.4,4423.7,0.46340459]
[1756907753081,1.738,4424.6,4423.2,1.738]
[1756907753082,1.738,4424.6,4424.1,0.1128]
[1756907753500,3.46904776,4424.5,4424.1,0.1128]
[1756907753868,1.2089,4424.4,4424.1,0.1128]
[1756907754075,0.4346,4424.4,4424.1,0.1128]
[1756907754275,1.8508,4424.6,4424.1,0.1128]
[1756907754276,4.205,4424.5,4424.2,2.26029238]
[1756907754474,4.205,4424.5,4424.1,2.37314636]
[1756907754698,1.8508,4424.6,4424.1,2.37314636]
[1756907754901,1.738,4424.6,4424.3,0.1128]
[1756907755566,1.2089,4424.5,4423.5,2.38414484]
[1756907755772,1.3217,4424.5,4423.9,0.1128]
[1756907755985,2.26024455,4424.3,4423.9,0.1128]
[1756907756187,6.46422475,4424.4,4423.9,0.1128]
[1756907756477,2.69485117,4424.3,4423.9,0.1128]
[1756907756678,0.3125,4424.0,4422.9,0.12366621]
[1756907756873,3.0,4423.8,4423.0,2.26089744]
[1756907757072,3.0,4423.8,4423.1,2.26085264]
[1756907757272,3.0,4423.8,4422.8,0.029]
[1756907757508,0.1128,4424.2,4423.7,0.3047]
[1756907757803,1.8508,4424.6,4423.7,0.4175]
[1756907758103,5.941,4424.6,4424.2,0.1128]
[1756907758505,5.9402,4424.6,4424.2,0.1128]
[1756907758871,1.7372,4424.6,4424.2,0.1128]
[1756907759084,4.202,4424.5,4424.2,0.1128]
[1756907759282,0.3125,4424.3,4424.2,0.1128]
[1756907759481,0.3125,4424.3,4423.0,0.12366621]
[1756907759686,1.7372,4424.6,4424.2,0.1128]
[1756907760171,0.1128,4424.9,4424.2,0.1128]
[1756907760373,4.201,4425.2,4425.0,2.2598815]
[1756907760715,0.001,4425.8,4425.7,2.25952956]
[1756907760869,0.001,4425.8,4425.7,2.56239084]
[1756907761077,0.001,4425.8,4425.2,0.09054741]
[1756907761384,0.001,4425.8,4425.1,2.25983352]
[1756907761712,0.46,4425.7,4424.9,0.12368681]
[1756907762015,0.001,4425.8,4425.5,2.25958432]
[1756907762306,0.001,4425.8,4424.9,2.2598972]
[1756907762486,0.001,4425.8,4424.6,0.12368681]
[1756907762813,0.001,4425.8,4424.3,1.738]
[1756907762814,0.2966,4425.3,4424.3,1.738]
[1756907762971,0.2966,4425.3,4424.6,2.26008928]
[1756907763170,1.738,4425.7,4424.5,2.26014238]
[1756907763381,1.738,4425.7,4425.4,2.2596369]
[1756907763608,0.001,4425.8,4425.6,2.2595345]
[1756907763813,0.001,4425.8,4425.3,2.25970863]
[1756907764322,0.2966,4425.4,4424.4,0.12369714]
[1756907764470,4.199,4425.3,4424.6,2.26005814]
[1756907764804,4.199,4425.3,4424.0,0.12376256]
[1756907765004,4.199,4425.3,4424.1,0.26667501]
[1756907765182,2.25970546,4425.4,4424.6,2.26004911]
[1756907765381,4.198,4425.4,4425.0,2.25987732]
[1756907765593,4.198,4425.4,4424.2,2.3840582]
[1756907765814,0.001,4425.7,4425.4,2.25968274]
[1756907765988,0.001,4425.7,4424.4,3.0]
[1756907765989,0.001,4425.7,4424.9,0.792]
[1756907766192,0.001,4425.7,4425.6,2.25958062]
[1756907766718,0.001,4425.7,4425.4,2.25967931]
[1756907766892,0.001,4425.7,4424.4,3.0]
[1756907766893,0.46,4425.6,4424.9,0.12396273]
[1756907767079,0.46,4425.6,4424.8,2.25996082]
[1756907767278,0.46,4425.6,4425.0,2.25988457]
[1756907767279,4.197,4425.6,4425.0,2.25988457]
[1756907767522,4.198,4425.7,4425.0,2.25984202]
[1756907767877,4.198,4425.7,4425.0,0.45198313]
[1756907768191,4.198,4425.7,4425.1,2.25979657]
[1756907768192,0.001,4425.7,4425.1,2.25979657]
[1756907768510,0.001,4425.7,4425.0,0.12396273]
[1756907768831,0.001,4425.7,4425.1,0.12396273]
[1756907768982,0.001,4425.7,4425.2,0.12396273]
[1756907769204,0.001,4425.7,4425.3,0.12396273]
[1756907769435,0.001,4425.7,4425.1,0.12396273]
[1756907769618,0.001,4425.7,4425.2,2.39681496]
[1756907769800,0.001,4425.7,4425.3,2.62336809]
[1756907770032,0.001,4425.7,4425.1,0.12396273]
[1756907770337,0.001,4425.7,4425.3,2.25971354]
[1756907770704,0.001,4425.7,4424.5,2.26013282]
[1756907770705,0.46,4425.6,4425.2,0.12396273]
[1756907770907,7.71694737,4425.5,4424.2,3.12396273]
[1756907771111,7.71694737,4425.5,4424.1,0.26667501]
[1756907771112,2.25968449,4425.4,4424.6,2.26007777]
[1756907771307,2.25968449,4425.4,4424.7,0.12396273]
[1756907771510,2.25968449,4425.4,4424.8,0.12396273]
[1756907771709,2.25987913,4425.1,4424.9,0.12396273]
[1756907771936,2.25987913,4425.1,4425.0,0.12396273]
[1756907772140,5.25979501,4425.2,4424.4,2.38415049]
[1756907772310,0.8013,4425.3,4425.0,2.25986944]
[1756907772509,0.8013,4425.3,4424.2,2.26029461]
[1756907772510,1.738,4426.1,4425.2,2.54958486]
[1756907772855,4.194,4425.9,4425.2,0.55715476]
[1756907773042,4.194,4425.9,4424.9,0.12396273]
[1756907773223,4.194,4425.9,4425.3,2.25972471]
[1756907773545,6.4534329,4425.9,4424.8,0.12396273]
[1756907773749,6.4534329,4425.9,4425.1,2.25979901]
[1756907774038,4.194,4425.9,4425.2,0.12396273]
[1756907774251,4.194,4425.9,4424.5,3.0]
[1756907774252,0.46,4426.0,4425.3,2.25972408]
[1756907774454,4.194,4425.7,4425.1,0.12396273]
[1756907774619,4.194,4425.7,4424.5,3.0]
[1756907774620,4.194,4425.7,4425.2,0.12396273]
[1756907774951,4.194,4425.7,4425.1,2.25979444]
[1756907775128,4.194,4425.7,4425.2,2.38373043]
[1756907775450,4.194,4425.7,4425.0,0.12396273]
[1756907775653,0.461,4425.7,4425.1,0.12396273]
[1756907775836,4.653,4425.7,4425.2,0.12396273]
[1756907776031,4.193,4425.7,4424.7,2.26004022]
[1756907776354,4.192,4425.6,4424.8,0.12396273]
[1756907776556,5.4533,4425.6,4424.9,0.12396273]
[1756907776854,4.192,4425.5,4425.2,2.25978078]
[1756907777057,4.192,4425.5,4425.1,2.25983272]
[1756907777224,4.192,4425.5,4424.6,0.12396273]
[1756907777551,4.192,4425.5,4424.7,2.38396351]
[1756907777552,4.191,4425.4,4424.7,2.38396351]
[1756907777853,4.191,4425.4,4424.8,2.38390402]
[1756907778152,3.06088455,4425.6,4424.9,0.12396273]
[1756907778353,4.191,4425.5,4424.9,0.12396273]
[1756907778653,4.191,4425.5,4424.8,2.25997897]
[1756907779050,4.191,4425.5,4423.9,0.7463]
[1756907779051,4.191,4425.5,4425.0,2.25984081]
[1756907779260,0.8013,4425.6,4425.1,2.25983074]
[1756907779454,4.19,4425.4,4424.9,2.25988709]
[1756907779656,1.2613,4425.3,4424.4,0.12396273]
[1756907779956,0.2966,4425.0,4424.5,0.12396273]
[1756907780158,0.2966,4425.0,4424.6,0.12396273]
[1756907780323,0.2966,4425.0,4423.7,0.12396273]
[1756907780324,2.26008101,4424.7,4423.7,0.12396273]
[1756907780528,4.19,4424.6,4423.9,2.26039817]
[1756907780731,4.19,4424.6,4424.3,0.1128]
[1756907781160,4.189,4424.5,4424.3,0.1128]
[1756907781475,1.737,4425.2,4424.5,0.2898]
[1756907781685,0.001,4425.8,4425.4,2.25967902]
[1756907781845,4.189,4425.6,4424.6,0.26710273]
[1756907782044,4.189,4425.6,4425.4,0.1128]
[1756907782274,3.81753168,4425.5,4425.4,0.1128]
[1756907782477,2.25983722,4425.1,4424.5,0.1128]
[1756907782778,2.25993807,4424.9,4424.5,0.1128]
[1756907783075,4.6482,4425.0,4424.5,0.1128]
[1756907783372,0.46,4424.8,4424.5,0.1128]
[1756907783846,0.46,4424.8,4424.5,0.0368]
[1756907784445,0.46,4424.7,4424.5,0.0368]
[1756907784641,0.46,4424.7,4424.3,0.12396273]
[1756907784863,1.2613,4424.6,4424.3,0.12396273]
[1756907785050,4.3008,4424.5,4423.9,0.23676273]
[1756907785251,4.3008,4424.5,4424.0,0.12396273]
[1756907785471,4.187,4424.4,4424.1,0.12396273]
[1756907785777,4.187,4424.4,4424.3,0.1128]
[1756907786080,4.187,4424.5,4424.3,0.1128]
[1756907786653,4.647,4424.5,4424.3,0.1128]
[1756907786856,4.187,4424.5,4424.3,0.1128]
[1756907787057,3.81809347,4424.4,4424.3,0.1128]
[1756907787380,1.5579,4424.4,4423.8,2.26449849]
[1756907787581,2.26004111,4424.7,4423.8,0.004]
[1756907787750,4.186,4424.3,4424.2,0.1128]
[1756907788170,2.26000268,4424.8,4424.2,0.1128]
[1756907788171,0.46,4424.7,4424.2,0.1128]
[1756907788481,6.9061085,4424.6,4424.2,0.1128]
[1756907788667,5.4473,4424.6,4424.2,0.1128]
[1756907788870,0.2966,4424.3,4423.9,0.1128]
[1756907789076,4.645,4424.2,4423.9,0.1128]
[1756907790047,6.90530372,4424.2,4423.9,0.1128]
[1756907790249,2.56179783,4424.0,4423.9,0.1128]
[1756907790570,2.56179783,4424.0,4423.8,0.004]
[1756907790571,2.26044892,4423.9,4423.8,0.004]
[1756907790769,3.47154892,4423.9,4423.8,0.004]
[1756907790954,3.80120453,4423.9,4423.8,0.004]
[1756907791150,6.80120453,4423.9,4423.8,0.004]
[1756907791385,6.77294892,4423.9,4423.8,0.004]
[1756907792099,1.738,4424.0,4423.9,2.26044892]
[1756907792405,2.26004022,4424.7,4423.9,0.1128]
[1756907792568,4.184,4424.6,4424.2,0.1128]
[1756907792969,4.183,4424.5,4424.2,0.1128]
[1756907793267,4.183,4424.5,4424.2,2.37309544]
[1756907793566,1.8508,4424.8,4424.2,2.37309175]
[1756907793781,4.183,4424.7,4424.2,2.37309175]
[1756907794496,4.183,4424.7,4424.2,0.1128]
[1756907794676,4.183,4424.6,4424.2,0.1128]
[1756907795188,1.738,4424.8,4424.5,0.1128]
[1756907795388,4.182,4424.7,4424.5,0.1128]
[1756907795574,4.6476,4424.7,4424.5,0.1128]
[1756907795894,5.3931,4424.7,4424.5,0.1128]
[1756907796094,4.182,4424.7,4424.5,0.1128]
[1756907796302,1.738,4424.8,4424.5,2.37293321]
[1756907796470,1.738,4424.8,4424.6,0.1128]
[1756907796680,4.181,4424.7,4424.6,0.1128]
[1756907796885,4.181,4424.7,4423.8,0.004]
[1756907796886,5.6935,4424.7,4423.8,0.004]
[1756907797081,16.5473023,4424.5,4423.8,0.004]
[1756907797301,18.80744917,4424.5,4424.0,0.1128]
[1756907797494,1.2111,4424.4,4424.0,0.1128]
[1756907797683,1.8508,4424.8,4424.0,2.373184]
[1756907797885,1.8508,4424.8,4423.8,0.004]
[1756907797886,5.3921,4424.7,4424.3,0.1128]
[1756907798218,5.3921,4424.7,4423.8,0.004]
[1756907798219,0.3014,4424.4,4424.1,0.1128]
[1756907798378,4.6456,4424.3,4424.1,0.1128]
[1756907798781,0.767,4424.2,4424.1,0.1128]
[1756907798981,20.32009794,4424.2,4424.1,0.1128]
[1756907799391,18.0598023,4424.2,4423.8,0.004]
[1756907799592,2.37324892,4423.9,4423.8,0.004]
[1756907799805,1.738,4423.9,4423.8,0.004]
[1756907800024,5.917,4423.9,4423.8,0.004]
[1756907800616,5.917,4423.9,4423.8,2.26450002]
[1756907800793,5.917,4423.9,4423.8,0.004]
[1756907800994,5.917,4423.9,4423.8,2.26450002]
[1756907801741,18.80723074,4425.0,4423.8,2.26450002]
[1756907801742,1.738,4425.5,4423.9,0.792]
[1756907801929,4.178,4425.4,4424.8,2.25995069]
[1756907802130,4.178,4425.4,4424.7,2.26003351]
[1756907802327,4.178,4425.4,4424.1,0.12396273]
[1756907802328,2.25973716,4425.3,4424.2,2.26029564]
[1756907802814,4.178,4425.2,4424.0,0.12396273]
[1756907803005,4.178,4425.2,4424.6,2.26009076]
[1756907803436,4.178,4425.2,4424.7,2.26003997]
[1756907803639,1.2111,4425.4,4424.7,2.26003997]
[1756907803838,4.177,4425.3,4424.1,0.36329649]
[1756907804042,0.001,4425.0,4424.1,0.12396273]
[1756907804210,4.177,4424.9,4423.8,0.004]
[1756907804407,4.177,4424.9,4423.8,0.12796273]
[1756907804623,4.177,4424.8,4424.6,2.26006586]
[1756907804942,4.177,4424.7,4424.5,2.26012137]
[1756907805121,4.177,4424.7,4423.9,0.12396273]
[1756907805319,0.001,4425.0,4424.7,2.25999681]
[1756907805525,4.176,4424.9,4424.7,2.25999681]
[1756907805753,4.176,4424.9,4424.2,0.12396273]
[1756907805905,4.176,4424.9,4424.1,0.12396273]
[1756907806111,4.176,4424.9,4424.3,2.2602019]
[1756907806338,4.176,4424.9,4424.4,2.26016634]
[1756907806540,0.4656,4424.8,4424.1,0.12396273]
[1756907806756,0.4656,4424.8,4424.3,2.26023225]
[1756907807158,4.175,4424.7,4423.9,0.12396273]
[1756907807384,0.001,4425.0,4424.7,2.26004022]
[1756907807582,0.001,4425.0,4424.9,3.35923807]
[1756907807877,0.001,4425.0,4424.9,6.49627229]
[1756907808029,0.001,4425.6,4425.5,6.05163168]
[1756907808228,0.313,4427.8,4427.1,2.25878739]
[1756907808429,0.313,4427.8,4426.5,2.2591212]
[1756907808661,0.313,4427.8,4426.6,0.46553433]
[1756907808829,0.313,4427.8,4426.4,0.12396273]
[1756907809024,0.4656,4427.7,4426.2,2.25927432]
[1756907809264,0.4656,4427.7,4426.3,0.792]
[1756907809464,0.4656,4427.7,4427.2,2.25875742]
[1756907809644,0.4656,4427.7,4427.1,2.2588101]
[1756907809832,0.3014,4427.2,4426.6,0.1128]
[1756907810028,1.738,4427.5,4427.1,0.1128]
[1756907810232,2.2036,4427.5,4427.1,0.1128]
[1756907810482,1.738,4427.5,4427.1,0.1128]
[1756907810642,1.738,4427.5,4427.2,2.25874753]
[1756907810842,1.738,4427.5,4427.1,0.1128]
[1756907811043,1.738,4427.5,4427.2,2.258764]
[1756907811565,1.738,4427.5,4427.4,0.1128]
[1756907813652,2.2036,4427.5,4427.4,0.1128]
[1756907813882,1.738,4427.5,4427.4,0.1128]
[1756907814186,5.50911095,4427.5,4427.4,0.1128]
[1756907814404,2.25866624,4427.4,4427.1,0.1128]
[1756907814763,0.3014,4427.2,4427.1,0.1128]
[1756907815100,0.4656,4427.3,4427.1,0.1128]
[1756907815267,1.738,4427.5,4427.1,0.1128]
[1756907815473,1.738,4427.5,4427.1,2.37156911]
[1756907815802,0.4656,4427.4,4427.1,0.1128]
[1756907815991,0.4656,4427.4,4427.1,2.37157386]
[1756907816192,1.738,4427.5,4427.1,0.1128]
[1756907816594,1.738,4427.5,4427.4,0.1128]
[1756907816795,0.1128,4427.9,4427.4,0.1128]
[1756907816998,0.1128,4427.9,4427.5,2.2585733]
[1756907817201,0.4656,4427.8,4427.4,0.1128]
[1756907817381,0.4656,4427.8,4426.8,0.817]
[1756907817722,2.25830512,4428.1,4427.7,0.1128]
[1756907817883,2.25830512,4428.1,4427.0,2.25886529]
[1756907817884,0.3014,4427.8,4427.0,2.25886529]
[1756907818216,2.25860896,4427.6,4427.3,0.1128]
[1756907818426,0.3014,4427.4,4426.8,0.025]
[1756907818569,0.3014,4427.4,4427.1,0.1128]
[1756907818899,0.3014,4427.4,4426.8,0.025]
[1756907818900,1.2111,4427.3,4426.9,0.1128]
[1756907819212,0.4656,4427.2,4426.9,0.1128]
[1756907819410,0.1128,4427.7,4426.9,2.37169203]
[1756907819594,0.4656,4427.6,4426.9,0.1128]
[1756907819796,0.4656,4427.6,4426.9,2.37171452]
[1756907819996,0.4656,4427.6,4426.9,0.1128]
[1756907820315,0.2967,4427.0,4426.9,0.1128]
[1756907820470,2.25891707,4426.9,4426.8,0.025]
[1756907820673,6.00485353,4426.9,4426.8,0.025]
[1756907820922,6.00485353,4426.9,4425.8,0.025]
[1756907820923,2.25942746,4425.9,4425.8,0.1378]
[1756907821218,2.25942746,4425.9,4425.8,0.025]
[1756907821415,6.71972746,4425.9,4425.8,0.025]
[1756907821618,3.7426,4425.9,4425.8,0.025]
[1756907821815,6.00202746,4425.9,4425.8,0.025]
[1756907822184,6.71972746,4425.9,4425.8,0.025]
[1756907824013,3.0,4425.9,4425.8,0.025]
[1756907824317,0.2967,4425.9,4425.8,0.025]
[1756907824526,2.37219033,4426.0,4425.8,0.025]
[1756907824886,2.81809033,4426.0,4425.8,0.025]
[1756907825287,0.5587,4426.0,4425.8,0.025]
[1756907825820,3.00202746,4425.9,4425.8,0.025]
[1756907826023,3.71972746,4425.9,4425.8,0.025]
[1756907826713,6.71972746,4425.9,4425.8,0.025]
[1756907827803,4.4603,4425.9,4425.8,0.025]
[1756907828113,2.25845107,4427.9,4425.8,0.025]
[1756907828114,1.39703936,4427.5,4425.8,0.3389]
[1756907828312,1.737,4427.0,4426.3,2.2592035]
[1756907828535,1.737,4427.0,4425.9,0.01305186]
[1756907828746,1.737,4427.0,4426.5,2.25911394]
[1756907828896,1.737,4427.0,4426.1,2.25931365]
[1756907829093,1.737,4427.0,4425.8,0.3315]
[1756907829321,1.737,4427.0,4425.9,3.05142746]
[1756907829501,1.737,4427.0,4426.7,2.2590065]
[1756907829706,1.737,4427.0,4426.0,2.67278438]
[1756907829891,1.737,4427.0,4426.0,0.41345275]
[1756907830129,1.737,4427.0,4426.9,2.57281707]
[1756907830331,0.001,4427.7,4426.9,2.57281707]
[1756907830644,3.001,4427.7,4427.0,2.25886604]
[1756907830801,0.001,4427.7,4427.1,2.25881203]
[1756907831198,0.001,4427.7,4427.1,2.25876796]
[1756907831393,0.001,4427.7,4427.1,0.2258768]
[1756907831609,0.001,4427.7,4426.4,0.3065]
[1756907831933,0.0002,4427.7,4426.4,0.3065]
[1756907832106,2.25857081,4427.6,4426.7,2.25897019]
[1756907832521,0.4459,4427.6,4426.1,0.7516]
[1756907832705,2.25880998,4427.2,4425.8,0.025]
[1756907832920,2.25880998,4427.2,4426.4,2.25913157]
[1756907833098,2.25872434,4427.3,4426.5,2.25910888]
[1756907833302,2.25867038,4427.4,4426.5,2.25910888]
[1756907833616,16.9932023,4427.3,4425.9,0.394052]
[1756907833812,16.9932023,4427.3,4426.3,2.25922296]
[1756907834127,16.9932023,4427.3,4426.0,2.25936894]
[1756907834128,2.25896266,4426.9,4426.0,2.25937641]
[1756907834342,17.2650023,4427.3,4426.5,2.25911743]
[1756907834506,16.5473023,4427.3,4426.1,0.3065]
[1756907834707,0.0002,4427.7,4426.2,0.80505048]
[1756907834902,0.0002,4427.7,4426.1,0.3065]
[1756907834903,0.0002,4427.7,4426.4,0.792]
[1756907835231,0.0002,4427.7,4427.2,2.25874462]
[1756907835436,0.0002,4427.7,4427.0,2.25884288]
[1756907835834,2.25874724,4427.7,4426.8,2.25891931]
[1756907836053,2.25874724,4427.7,4426.5,0.30512233]
[1756907836054,3.0002,4427.7,4426.5,0.30512233]
[1756907836223,0.4459,4427.6,4426.9,2.25891387]
[1756907836425,0.4459,4427.6,4426.7,2.258983]
[1756907836625,0.4459,4427.6,4426.8,2.25895614]
[1756907836925,2.70447559,4427.6,4426.6,2.25906665]
[1756907837136,0.4459,4427.6,4426.9,2.25888275]
[1756907837313,0.4459,4427.6,4426.8,2.25895944]
[1756907837508,3.0002,4427.7,4427.0,2.25885443]
[1756907837738,3.0002,4427.7,4427.1,0.01304145]
[1756907837739,0.0002,4427.7,4427.1,0.01304145]
[1756907837912,0.0002,4427.7,4427.6,0.4267]
[1756907838237,0.0002,4427.7,4427.6,0.1128]
[1756907838403,0.0002,4427.7,4427.6,2.95378871]
[1756907838805,0.0002,4427.7,4427.6,3.70538871]
[1756907839002,0.0002,4427.7,4427.6,4.01188871]
[1756907839233,0.0002,4427.7,4427.6,0.38132877]
[1756907839440,0.0002,4427.7,4427.6,0.1128]
[1756907839637,0.2969,4427.7,4427.6,0.1128]
[1756907839837,6.71900893,4427.7,4426.6,0.12353154]
[1756907840006,6.71900893,4427.7,4427.2,0.1128]
[1756907840007,2.25861095,4427.5,4427.2,0.1128]
[1756907840207,22.96947075,4427.6,4427.2,0.1128]
[1756907840403,2.70457602,4427.4,4427.2,0.1128]
[1756907840651,0.2967,4427.3,4427.2,0.1128]
[1756907840832,0.7426,4427.3,4427.2,0.1128]
[1756907841216,0.0002,4427.7,4427.2,0.1128]
[1756907841520,1.1636,4427.6,4427.2,0.1128]
[1756907841722,2.7045604,4427.5,4427.2,0.1128]
[1756907841945,0.2967,4427.3,4427.2,0.1128]
[1756907842241,2.25896663,4426.9,4426.6,0.1168]
[1756907842440,0.4095,4427.3,4426.6,0.1168]
[1756907842441,0.2967,4426.7,4426.6,0.1168]
[1756907842633,0.7426,4426.7,4426.6,0.004]
[1756907843029,3.00161913,4426.7,4426.6,0.004]
[1756907843531,6.74755686,4426.7,4426.6,0.004]
[1756907843730,6.83211913,4426.7,4426.6,0.004]
[1756907844035,6.83211913,4426.7,4426.1,0.004]
[1756907844036,3.0,4426.6,4426.1,0.004]
[1756907844208,21.80657662,4426.2,4426.1,0.004]
[1756907844414,22.21607662,4426.2,4426.1,0.004]
[1756907844942,2.25942746,4425.9,4425.8,0.025]
[1756907845143,2.4004703,4425.9,4425.8,0.025]
[1756907845441,6.8607703,4425.9,4425.8,0.025]
[1756907845742,6.83252746,4425.9,4425.8,0.025]
[1756907848128,0.1128,4426.7,4425.8,0.025]
[1756907848129,0.7177,4426.7,4425.8,0.025]
[1756907848466,2.25901913,4426.7,4425.8,0.025]
[1756907848638,18.7302023,4426.8,4425.8,0.025]
[1756907848821,2.25933383,4426.1,4425.8,0.025]
[1756907849025,3.02823773,4426.7,4425.8,0.025]
[1756907849241,2.55612746,4425.9,4425.8,0.025]
[1756907849438,2.25942746,4425.9,4425.8,0.025]
[1756907850257,2.25937641,4426.0,4425.8,0.025]
[1756907850630,2.25942746,4425.9,4425.8,0.025]
[1756907851137,0.761,4425.9,4425.8,0.025]
[1756907851457,4.51814032,4426.6,4425.8,0.025]
[1756907851657,0.4558,4426.5,4425.8,0.025]
[1756907851962,0.02823837,4426.6,4425.8,0.025]
[1756907852262,3.0,4426.7,4425.8,0.025]
[1756907852558,18.2843023,4426.8,4425.9,0.7545]
[1756907852559,1.737,4426.8,4425.9,0.7545]
[1756907852722,1.737,4426.8,4426.2,2.25926238]
[1756907852922,18.2843023,4426.8,4425.8,0.025]
[1756907853123,2.25907909,4426.6,4425.8,0.025]
[1756907853327,18.2843023,4426.8,4425.9,2.25941743]
[1756907853729,2.25902141,4426.7,4425.9,2.25942746]
[1756907853930,2.25901913,4426.7,4425.8,0.025]
[1756907854126,1.737,4426.8,4425.8,0.025]
[1756907854127,2.25920304,4426.4,4425.8,0.025]
[1756907854439,18.2843023,4426.8,4425.8,0.025]
[1756907854758,0.7651,4426.4,4425.8,0.025]
[1756907854929,2.25932536,4426.1,4425.8,0.025]
[1756907855130,2.25942746,4425.9,4425.8,0.025]
[1756907855330,18.80661884,4426.2,4425.8,0.025]
[1756907855331,16.5473023,4426.2,4425.8,0.025]
[1756907855637,0.4558,4426.3,4425.8,0.025]
[1756907855842,3.0,4426.6,4425.8,0.025]
[1756907856051,2.2592817,4426.2,4425.8,0.025]
[1756907856268,2.2592761,4426.2,4425.8,0.025]
[1756907856477,2.25917327,4426.4,4425.8,0.025]
[1756907856774,2.25936254,4426.1,4425.8,0.025]
[1756907857148,2.5021,4426.8,4425.8,0.025]
[1756907857354,2.25922701,4426.3,4425.8,0.025]
[1756907857541,1.737,4426.8,4425.8,0.025]
[1756907857742,1.737,4426.8,4426.2,0.2948]
[1756907858159,2.2591247,4426.5,4425.8,0.025]
[1756907858343,1.737,4426.8,4425.8,0.025]
[1756907858344,0.02823837,4426.6,4426.3,0.1128]
[1756907858543,2.5021,4426.8,4425.8,0.025]
[1756907858544,3.0,4426.3,4425.8,0.025]
[1756907858756,2.25942746,4425.9,4425.8,0.1378]
[1756907858977,2.25942746,4425.9,4425.8,0.1418]
[1756907859669,2.25942746,4425.9,4425.8,0.029]
[1756907859881,3.78552746,4425.9,4425.8,0.029]
[1756907860046,20.04415836,4425.9,4425.8,0.029]
[1756907860250,20.01591552,4425.9,4425.8,0.029]
[1756907862155,20.01591552,4425.9,4425.7,0.004]
[1756907862156,5.25947851,4425.8,4425.7,1e-08]
[1756907862383,5.37227851,4425.8,4425.7,1e-08]
[1756907862561,6.89837851,4425.8,4425.7,1e-08]
[1756907863056,6.89837851,4425.8,4425.3,1e-08]
[1756907863057,2.25968274,4425.4,4425.3,1e-08]
[1756907863273,6.19272877,4425.4,4425.3,1e-08]
[1756907863590,7.69058274,4425.4,4425.3,1e-08]
[1756907864267,7.69058274,4425.4,4423.8,0.004]
[1756907864268,2.26044892,4423.9,4423.8,0.004]
[1756907864579,2.37324892,4423.9,4423.8,0.004]
[1756907865547,0.1128,4423.9,4423.8,0.004]
[1756907865748,2.37324892,4423.9,4423.8,0.004]
[1756907865949,3.0,4424.2,4423.8,0.004]
[1756907866260,0.1128,4424.1,4423.8,0.004]
[1756907866461,2.26044892,4423.9,4423.8,0.004]
[1756907866862,2.37314866,4424.1,4423.8,0.004]
[1756907867056,0.1128,4424.1,4423.8,0.2988]
[1756907867385,2.26019347,4424.4,4423.9,0.1128]
[1756907867586,0.1128,4424.5,4423.9,0.1128]
[1756907867887,2.26036695,4424.1,4423.9,0.1128]
[1756907868043,2.26030304,4424.2,4423.9,0.1128]
[1756907868249,1.737,4424.7,4424.1,2.26030125]
[1756907868449,1.737,4424.7,4424.6,0.2948]
[1756907868851,3.0,4424.9,4424.6,0.2948]
[1756907869049,0.1128,4425.0,4424.4,0.1128]
[1756907869483,2.26008114,4424.7,4424.4,0.1128]